[Event "Titled Tuesday Blitz January 03 Early 2023"]
[White "Berezin, Viktor"]
[Black "Zohid6"]
[WhiteFideId "14107872"]
[WhiteElo "2307"]
[BlackElo "2748"]
[Result "1-0"]
[Round "09"]
[TimeControl "180+2"]
[Date "2023.01.03"]
[WhiteClock "0:00:07"]
[BlackClock "0:01:43"]

1. d4 {[%clk 0:02:56]}  Nf6 {[%clk 0:02:59]} 2. Nf3 {[%clk 0:02:53]}  b6 {[%clk 0:02:58]} 3. g3 {[%clk 0:02:51]}  Bb7 {[%clk 0:02:58]} 4. Bg2 {[%clk 0:02:51]}  e6 {[%clk 0:02:59]} 5. O-O {[%clk 0:02:51]}  c5 {[%clk 0:02:59]} 6. c4 {[%clk 0:02:48]}  cxd4 {[%clk 0:02:59]} 7. Nxd4 {[%clk 0:02:49]}  Bxg2 {[%clk 0:02:59]} 8. Kxg2 {[%clk 0:02:50]}  d5 {[%clk 0:03:00]} 9. cxd5 {[%clk 0:02:48]}  Qxd5+ {[%clk 0:02:59]} 10. Nf3 {[%clk 0:02:48]}  Nc6 {[%clk 0:02:58]} 11. Nc3 {[%clk 0:02:47]}  Qxd1 {[%clk 0:02:58]} 12. Rxd1 {[%clk 0:02:48]}  Bb4 {[%clk 0:02:58]} 13. Nb5 {[%clk 0:02:46]}  Ke7 {[%clk 0:02:58]} 14. a3 {[%clk 0:02:46]}  a6 {[%clk 0:02:48]} 15. Nc7 {[%clk 0:02:42]}  Ra7 {[%clk 0:02:47]} 16. axb4 {[%clk 0:02:28]}  Rxc7 {[%clk 0:02:47]} 17. Rxa6 {[%clk 0:02:26]}  Rb7 {[%clk 0:02:44]} 18. b5 {[%clk 0:02:20]}  Na7 {[%clk 0:02:44]} 19. Be3 {[%clk 0:02:00]}  Nd5 {[%clk 0:02:42]} 20. Bd4 {[%clk 0:01:58]}  f6 {[%clk 0:02:40]} 21. e4 {[%clk 0:01:56]}  Nc7 {[%clk 0:02:38]} 22. Rxb6 {[%clk 0:01:52]}  Rxb6 {[%clk 0:02:37]} 23. Bxb6 {[%clk 0:01:53]}  Naxb5 {[%clk 0:02:37]} 24. Bc5+ {[%clk 0:01:52]}  Ke8 {[%clk 0:02:37]} 25. e5 {[%clk 0:01:50]}  f5 {[%clk 0:02:36]} 26. Bd6 {[%clk 0:01:30]}  Nd5 {[%clk 0:02:31]} 27. Ra1 {[%clk 0:01:27]}  Kd7 {[%clk 0:02:27]} 28. Bc5 {[%clk 0:01:17]}  Kc6 {[%clk 0:02:22]} 29. b4 {[%clk 0:01:16]}  Kb7 {[%clk 0:02:22]} 30. Ng5 {[%clk 0:01:14]}  Ndc7 {[%clk 0:02:19]} 31. Nf7 {[%clk 0:01:09]}  Ra8 {[%clk 0:02:17]} 32. Rd1 {[%clk 0:01:05]}  Nd5 {[%clk 0:02:16]} 33. Ng5 {[%clk 0:01:01]}  Rd8 {[%clk 0:02:13]} 34. Kh3 {[%clk 0:00:52]}  Nf4+ {[%clk 0:02:13]} 35. gxf4 {[%clk 0:00:49]}  Rxd1 {[%clk 0:02:13]} 36. Nxe6 {[%clk 0:00:48]}  g6 {[%clk 0:02:13]} 37. Ng5 {[%clk 0:00:46]}  h5 {[%clk 0:02:11]} 38. Nf7 {[%clk 0:00:39]}  Kc6 {[%clk 0:02:10]} 39. Nh8 {[%clk 0:00:39]}  Kd5 {[%clk 0:02:06]} 40. Nxg6 {[%clk 0:00:37]}  Ke4 {[%clk 0:02:07]} 41. e6 {[%clk 0:00:31]}  Nc7 {[%clk 0:02:07]} 42. e7 {[%clk 0:00:31]}  Ne8 {[%clk 0:02:06]} 43. Kh4 {[%clk 0:00:25]}  Kd5 {[%clk 0:02:03]} 44. Kg5 {[%clk 0:00:23]}  Ke6 {[%clk 0:02:02]} 45. Nf8+ {[%clk 0:00:21]}  Kd5 {[%clk 0:02:00]} 46. Kxf5 {[%clk 0:00:20]}  Rh1 {[%clk 0:02:00]} 47. Kg6 {[%clk 0:00:17]}  Rxh2 {[%clk 0:01:55]} 48. Kf7 {[%clk 0:00:17]}  Nc7 {[%clk 0:01:56]} 49. Ne6 {[%clk 0:00:13]}  Nxe6 {[%clk 0:01:51]} 50. e8=Q {[%clk 0:00:11]}  Nxf4 {[%clk 0:01:52]} 51. Qd7+ {[%clk 0:00:11]}  Ke4 {[%clk 0:01:51]} 52. Qc6+ {[%clk 0:00:11]}  Kf5 {[%clk 0:01:51]} 53. Qd7+ {[%clk 0:00:10]}  Ke4 {[%clk 0:01:51]} 54. b5 {[%clk 0:00:11]}  Rh3 {[%clk 0:01:47]} 55. b6 {[%clk 0:00:09]}  Rf3 {[%clk 0:01:47]} 56. Kg8 {[%clk 0:00:07]}  Nd5 {[%clk 0:01:46]} 57. Qe6+ {[%clk 0:00:07]}  Kf4 {[%clk 0:01:45]} 58. Qxd5 {[%clk 0:00:07]}  h4 {[%clk 0:01:44]} 59. Qxf3+ {[%clk 0:00:06]}  Kxf3 {[%clk 0:01:43]} 60. Bd6 {[%clk 0:00:07]} 1-0


[Site "https://www.chess.com"]

[Event "Titled Tuesday Blitz January 03 Early 2023"]
[White "Fiorito, Joaquin"]
[Black "Korchmar, Vasiliy"]
[WhiteFideId "180173"]
[BlackFideId "24131750"]
[WhiteElo "2405"]
[BlackElo "2438"]
[Result "0-1"]
[Round "09"]
[TimeControl "180+2"]
[Date "2023.01.03"]
[WhiteClock "0:00:17"]
[BlackClock "0:00:07"]

1. d4 {[%clk 0:03:00]}  Nf6 {[%clk 0:02:55]} 2. Nc3 {[%clk 0:03:00]}  d5 {[%clk 0:02:50]} 3. Bf4 {[%clk 0:03:00]}  Nc6 {[%clk 0:02:45]} 4. Nb5 {[%clk 0:02:59]}  e5 {[%clk 0:02:45]} 5. dxe5 {[%clk 0:03:00]}  Nh5 {[%clk 0:02:45]} 6. e3 {[%clk 0:03:00]}  Nxf4 {[%clk 0:02:41]} 7. exf4 {[%clk 0:03:01]}  g5 {[%clk 0:02:18]} 8. Qxd5 {[%clk 0:02:46]}  Be7 {[%clk 0:01:47]} 9. Qxd8+ {[%clk 0:02:35]}  Bxd8 {[%clk 0:01:47]} 10. fxg5 {[%clk 0:02:13]}  Nxe5 {[%clk 0:01:47]} 11. O-O-O {[%clk 0:02:04]}  a6 {[%clk 0:01:42]} 12. Re1 {[%clk 0:01:57]}  Bxg5+ {[%clk 0:01:35]} 13. Kb1 {[%clk 0:01:57]}  axb5 {[%clk 0:01:27]} 14. Rxe5+ {[%clk 0:01:55]}  Be7 {[%clk 0:01:27]} 15. Bxb5+ {[%clk 0:01:53]}  Kf8 {[%clk 0:01:28]} 16. Bc4 {[%clk 0:01:44]}  Rg8 {[%clk 0:01:27]} 17. g3 {[%clk 0:01:44]}  Bf6 {[%clk 0:00:57]} 18. Re1 {[%clk 0:01:37]}  b5 {[%clk 0:00:45]} 19. Bd5 {[%clk 0:01:34]}  Ra6 {[%clk 0:00:40]} 20. Nf3 {[%clk 0:01:33]}  Kg7 {[%clk 0:00:39]} 21. Ne5 {[%clk 0:01:26]}  Rd8 {[%clk 0:00:34]} 22. Bb3 {[%clk 0:01:08]}  Bb7 {[%clk 0:00:34]} 23. Rhg1 {[%clk 0:01:06]}  c5 {[%clk 0:00:35]} 24. c4 {[%clk 0:00:35]}  bxc4 {[%clk 0:00:16]} 25. Nxc4 {[%clk 0:00:33]}  Bf3 {[%clk 0:00:16]} 26. Re3 {[%clk 0:00:32]}  Bg4 {[%clk 0:00:14]} 27. Bc2 {[%clk 0:00:27]}  Be6 {[%clk 0:00:12]} 28. b3 {[%clk 0:00:24]}  Rda8 {[%clk 0:00:08]} 29. a4 {[%clk 0:00:22]}  Rb8 {[%clk 0:00:08]} 30. Nd2 {[%clk 0:00:20]}  Rxa4 {[%clk 0:00:07]} 31. Rge1 {[%clk 0:00:17]}  Ra1# {[%clk 0:00:07]} 0-1


[Site "https://www.chess.com"]

[Event "Titled Tuesday Blitz January 03 Early 2023"]
[White "Bettalli, Francesco"]
[Black "Diaz Villagran, Robert"]
[WhiteFideId "2816453"]
[BlackFideId "3404056"]
[WhiteElo "2252"]
[BlackElo "2315"]
[Result "0-1"]
[Round "09"]
[TimeControl "180+2"]
[Date "2023.01.03"]
[WhiteClock "0:00:59"]
[BlackClock "0:00:11"]

1. d4 {[%clk 0:03:00]}  Nf6 {[%clk 0:02:45]} 2. Nc3 {[%clk 0:03:01]}  d5 {[%clk 0:02:45]} 3. Bf4 {[%clk 0:03:02]}  Bf5 {[%clk 0:02:42]} 4. e3 {[%clk 0:02:59]}  e6 {[%clk 0:02:42]} 5. f3 {[%clk 0:02:56]}  h6 {[%clk 0:02:40]} 6. g4 {[%clk 0:02:57]}  Bh7 {[%clk 0:02:41]} 7. Bd3 {[%clk 0:02:56]}  a6 {[%clk 0:02:36]} 8. Nge2 {[%clk 0:02:56]}  c5 {[%clk 0:02:35]} 9. h4 {[%clk 0:02:56]}  Bxd3 {[%clk 0:02:33]} 10. Qxd3 {[%clk 0:02:56]}  Nc6 {[%clk 0:02:34]} 11. Kf2 {[%clk 0:02:50]}  cxd4 {[%clk 0:02:26]} 12. exd4 {[%clk 0:02:51]}  Qb6 {[%clk 0:02:25]} 13. g5 {[%clk 0:02:47]}  Nh5 {[%clk 0:02:25]} 14. Be3 {[%clk 0:02:47]}  Bd6 {[%clk 0:02:22]} 15. g6 {[%clk 0:02:45]}  f5 {[%clk 0:02:19]} 16. Nxd5 {[%clk 0:02:34]}  exd5 {[%clk 0:02:17]} 17. Qxf5 {[%clk 0:02:35]}  Nf6 {[%clk 0:02:15]} 18. Qe6+ {[%clk 0:02:35]}  Ne7 {[%clk 0:01:36]} 19. Qf7+ {[%clk 0:02:32]}  Kd7 {[%clk 0:01:37]} 20. Qxg7 {[%clk 0:02:31]}  Rag8 {[%clk 0:01:13]} 21. Qxf6 {[%clk 0:02:30]}  Bg3+ {[%clk 0:01:12]} 22. Nxg3 {[%clk 0:02:28]}  Qxf6 {[%clk 0:01:13]} 23. h5 {[%clk 0:02:28]}  Nf5 {[%clk 0:01:10]} 24. Nxf5 {[%clk 0:02:23]}  Qxf5 {[%clk 0:01:11]} 25. c3 {[%clk 0:02:21]}  Re8 {[%clk 0:01:09]} 26. Rae1 {[%clk 0:02:20]}  Rhf8 {[%clk 0:01:04]} 27. f4 {[%clk 0:02:19]}  Rxe3 {[%clk 0:00:54]} 28. Kxe3 {[%clk 0:02:11]}  Qxf4+ {[%clk 0:00:55]} 29. Kd3 {[%clk 0:02:12]}  Qf3+ {[%clk 0:00:47]} 30. Kc2 {[%clk 0:02:12]}  Qg2+ {[%clk 0:00:47]} 31. Kb3 {[%clk 0:02:12]}  Rf2 {[%clk 0:00:47]} 32. Rb1 {[%clk 0:02:07]}  a5 {[%clk 0:00:30]} 33. Rhg1 {[%clk 0:02:04]}  Rxb2+ {[%clk 0:00:30]} 34. Rxb2 {[%clk 0:02:02]}  Qxg1 {[%clk 0:00:30]} 35. Ka4 {[%clk 0:02:00]}  Kc7 {[%clk 0:00:24]} 36. Kxa5 {[%clk 0:01:57]}  Qg5 {[%clk 0:00:20]} 37. Re2 {[%clk 0:01:35]}  Qxh5 {[%clk 0:00:17]} 38. Re7+ {[%clk 0:01:36]}  Kd6 {[%clk 0:00:17]} 39. Rxb7 {[%clk 0:01:34]}  Qe2 {[%clk 0:00:16]} 40. g7 {[%clk 0:01:26]}  Qxa2+ {[%clk 0:00:15]} 41. Kb6 {[%clk 0:01:22]}  Qg2 {[%clk 0:00:15]} 42. Kb5 {[%clk 0:01:15]}  h5 {[%clk 0:00:15]} 43. Rb6+ {[%clk 0:01:15]}  Ke7 {[%clk 0:00:15]} 44. Rh6 {[%clk 0:01:14]}  Qxg7 {[%clk 0:00:14]} 45. Rxh5 {[%clk 0:01:14]}  Kd6 {[%clk 0:00:14]} 46. Re5 {[%clk 0:01:10]}  Qb7+ {[%clk 0:00:14]} 47. Ka4 {[%clk 0:01:10]}  Qb2 {[%clk 0:00:13]} 48. Re3 {[%clk 0:01:06]}  Qc1 {[%clk 0:00:13]} 49. Rh3 {[%clk 0:01:02]}  Ke6 {[%clk 0:00:12]} 50. Kb3 {[%clk 0:01:01]}  Qb1+ {[%clk 0:00:12]} 51. Ka3 {[%clk 0:01:00]}  Kf5 {[%clk 0:00:13]} 52. Re3 {[%clk 0:00:59]}  Qc1+ {[%clk 0:00:11]} 0-1


[Site "https://www.chess.com"]

[Event "Titled Tuesday Blitz January 03 Early 2023"]
[White "Gheorghiu, Calin"]
[Black "Ginzburg, Yakov"]
[WhiteFideId "1200305"]
[BlackFideId "4157176"]
[WhiteElo "2313"]
[BlackElo "2405"]
[Result "1-0"]
[Round "09"]
[TimeControl "180+2"]
[Date "2023.01.03"]
[WhiteClock "0:00:13"]
[BlackClock "0:00:03"]

1. e4 {[%clk 0:03:00]}  c5 {[%clk 0:02:58]} 2. Nf3 {[%clk 0:03:00]}  e6 {[%clk 0:02:59]} 3. c3 {[%clk 0:03:00]}  d5 {[%clk 0:02:58]} 4. e5 {[%clk 0:02:59]}  d4 {[%clk 0:02:58]} 5. Bd3 {[%clk 0:02:58]}  Ne7 {[%clk 0:02:41]} 6. O-O {[%clk 0:02:55]}  Ng6 {[%clk 0:02:42]} 7. Re1 {[%clk 0:02:54]}  Nc6 {[%clk 0:02:42]} 8. Na3 {[%clk 0:02:51]}  Be7 {[%clk 0:02:40]} 9. Nc4 {[%clk 0:02:28]}  O-O {[%clk 0:02:37]} 10. a4 {[%clk 0:02:27]}  Qc7 {[%clk 0:02:36]} 11. g3 {[%clk 0:02:14]}  f6 {[%clk 0:02:04]} 12. Bxg6 {[%clk 0:02:04]}  hxg6 {[%clk 0:02:05]} 13. d3 {[%clk 0:02:04]}  b6 {[%clk 0:01:58]} 14. Qe2 {[%clk 0:02:00]}  f5 {[%clk 0:01:55]} 15. Bg5 {[%clk 0:01:55]}  Bb7 {[%clk 0:01:36]} 16. Nd6 {[%clk 0:01:48]}  Bxd6 {[%clk 0:01:26]} 17. exd6 {[%clk 0:01:47]}  Qxd6 {[%clk 0:01:26]} 18. Qxe6+ {[%clk 0:01:47]}  Qxe6 {[%clk 0:01:26]} 19. Rxe6 {[%clk 0:01:47]}  Nd8 {[%clk 0:01:11]} 20. Bxd8 {[%clk 0:01:40]}  Raxd8 {[%clk 0:01:11]} 21. Ne5 {[%clk 0:01:40]}  dxc3 {[%clk 0:01:05]} 22. bxc3 {[%clk 0:01:32]}  Ba6 {[%clk 0:00:41]} 23. c4 {[%clk 0:01:28]}  g5 {[%clk 0:00:31]} 24. f4 {[%clk 0:01:23]}  gxf4 {[%clk 0:00:29]} 25. gxf4 {[%clk 0:01:23]}  Rd4 {[%clk 0:00:30]} 26. Rf1 {[%clk 0:01:24]}  Rfd8 {[%clk 0:00:09]} 27. Rf3 {[%clk 0:01:18]}  Kf8 {[%clk 0:00:07]} 28. Rg3 {[%clk 0:01:15]}  R4d6 {[%clk 0:00:06]} 29. Ng6+ {[%clk 0:01:05]}  Kf7 {[%clk 0:00:05]} 30. Re7+ {[%clk 0:00:38]}  Kf6 {[%clk 0:00:06]} 31. Rxa7 {[%clk 0:00:37]}  Rxd3 {[%clk 0:00:06]} 32. Ne5 {[%clk 0:00:19]}  Rd1+ {[%clk 0:00:05]} 33. Kg2 {[%clk 0:00:19]}  R8d2+ {[%clk 0:00:04]} 34. Kh3 {[%clk 0:00:19]}  g5 {[%clk 0:00:04]} 35. Rxg5 {[%clk 0:00:13]}  Rd3+ {[%clk 0:00:03]} 36. Kh4 {[%clk 0:00:13]} 1-0


[Site "https://www.chess.com"]

[Event "Titled Tuesday Blitz January 03 Early 2023"]
[White "Maevsky, Nikolay"]
[Black "Vysochin, Spartak"]
[WhiteFideId "4198220"]
[BlackFideId "14103516"]
[WhiteElo "2277"]
[BlackElo "2512"]
[Result "0-1"]
[Round "09"]
[TimeControl "180+2"]
[Date "2023.01.03"]
[WhiteClock "0:00:02"]
[BlackClock "0:00:20"]

1. d4 {[%clk 0:03:00]}  d5 {[%clk 0:02:52]} 2. Nf3 {[%clk 0:03:01]}  Nf6 {[%clk 0:02:51]} 3. c4 {[%clk 0:03:01]}  c6 {[%clk 0:02:50]} 4. e3 {[%clk 0:03:00]}  Bf5 {[%clk 0:02:47]} 5. Nc3 {[%clk 0:02:59]}  e6 {[%clk 0:02:46]} 6. Nh4 {[%clk 0:02:59]}  Be4 {[%clk 0:02:45]} 7. f3 {[%clk 0:02:59]}  Bg6 {[%clk 0:02:46]} 8. Qb3 {[%clk 0:02:59]}  Qb6 {[%clk 0:02:45]} 9. Bd2 {[%clk 0:03:00]}  Qxb3 {[%clk 0:02:35]} 10. axb3 {[%clk 0:02:59]}  Bc2 {[%clk 0:02:36]} 11. c5 {[%clk 0:02:56]}  g5 {[%clk 0:02:32]} 12. b4 {[%clk 0:02:29]}  gxh4 {[%clk 0:02:29]} 13. b5 {[%clk 0:02:30]}  cxb5 {[%clk 0:02:07]} 14. Nxb5 {[%clk 0:02:23]}  Kd7 {[%clk 0:02:06]} 15. Nxa7 {[%clk 0:02:13]}  Nc6 {[%clk 0:02:04]} 16. Bb5 {[%clk 0:02:13]}  Bh6 {[%clk 0:01:56]} 17. Kf2 {[%clk 0:02:03]}  Kc7 {[%clk 0:01:54]} 18. Ba5+ {[%clk 0:01:25]}  Nxa5 {[%clk 0:01:53]} 19. Rxa5 {[%clk 0:01:25]}  Rhg8 {[%clk 0:01:08]} 20. Rc1 {[%clk 0:01:23]}  Bf5 {[%clk 0:01:05]} 21. b4 {[%clk 0:01:10]}  h3 {[%clk 0:01:01]} 22. g3 {[%clk 0:01:08]}  e5 {[%clk 0:00:56]} 23. dxe5 {[%clk 0:01:06]}  Nd7 {[%clk 0:00:56]} 24. f4 {[%clk 0:00:51]}  f6 {[%clk 0:00:56]} 25. Be2 {[%clk 0:00:45]}  fxe5 {[%clk 0:00:52]} 26. Nb5+ {[%clk 0:00:46]}  Kb8 {[%clk 0:00:52]} 27. Rxa8+ {[%clk 0:00:43]}  Kxa8 {[%clk 0:00:52]} 28. Nc7+ {[%clk 0:00:39]}  Kb8 {[%clk 0:00:51]} 29. Nxd5 {[%clk 0:00:40]}  exf4 {[%clk 0:00:51]} 30. exf4 {[%clk 0:00:39]}  Bg7 {[%clk 0:00:51]} 31. Rd1 {[%clk 0:00:29]}  Re8 {[%clk 0:00:36]} 32. Ne3 {[%clk 0:00:28]}  Be6 {[%clk 0:00:33]} 33. f5 {[%clk 0:00:28]}  Rf8 {[%clk 0:00:33]} 34. g4 {[%clk 0:00:24]}  Ne5 {[%clk 0:00:33]} 35. Kg3 {[%clk 0:00:24]}  Bc8 {[%clk 0:00:33]} 36. Kxh3 {[%clk 0:00:17]}  h5 {[%clk 0:00:33]} 37. Kg3 {[%clk 0:00:14]}  hxg4 {[%clk 0:00:31]} 38. Nxg4 {[%clk 0:00:12]}  Bxf5 {[%clk 0:00:29]} 39. Rf1 {[%clk 0:00:06]}  Nxg4 {[%clk 0:00:29]} 40. Bxg4 {[%clk 0:00:05]}  Be5+ {[%clk 0:00:30]} 41. Kh4 {[%clk 0:00:05]}  Rh8+ {[%clk 0:00:27]} 42. Kg5 {[%clk 0:00:05]}  Bxg4 {[%clk 0:00:25]} 43. Kxg4 {[%clk 0:00:05]}  Bxh2 {[%clk 0:00:23]} 44. b5 {[%clk 0:00:05]}  Rc8 {[%clk 0:00:22]} 45. c6 {[%clk 0:00:04]}  bxc6 {[%clk 0:00:22]} 46. bxc6 {[%clk 0:00:04]}  Rxc6 {[%clk 0:00:22]} 47. Rf8+ {[%clk 0:00:04]}  Kc7 {[%clk 0:00:22]} 48. Kf5 {[%clk 0:00:04]}  Bd6 {[%clk 0:00:21]} 49. Rf7+ {[%clk 0:00:03]}  Kb6 {[%clk 0:00:21]} 50. Ke4 {[%clk 0:00:03]}  Kc5 {[%clk 0:00:21]} 51. Rf5+ {[%clk 0:00:03]}  Kc4 {[%clk 0:00:21]} 52. Rf1 {[%clk 0:00:02]}  Bb4 {[%clk 0:00:20]} 0-1


[Site "https://www.chess.com"]

[Event "Titled Tuesday Blitz January 03 Early 2023"]
[White "reevecanada"]
[Black "Cnejev, Vladimir-Alexandru"]
[BlackFideId "1260898"]
[WhiteElo "2477"]
[BlackElo "2374"]
[Result "1/2-1/2"]
[Round "09"]
[TimeControl "180+2"]
[Date "2023.01.03"]
[WhiteClock "0:00:20"]
[BlackClock "0:00:04"]

1. e4 {[%clk 0:02:58]}  d6 {[%clk 0:02:59]} 2. d4 {[%clk 0:02:56]}  g6 {[%clk 0:03:00]} 3. Bd3 {[%clk 0:02:54]}  Bg7 {[%clk 0:03:00]} 4. Ne2 {[%clk 0:02:55]}  Nf6 {[%clk 0:03:00]} 5. O-O {[%clk 0:02:55]}  O-O {[%clk 0:03:01]} 6. f3 {[%clk 0:02:55]}  e5 {[%clk 0:03:01]} 7. c3 {[%clk 0:02:54]}  Nc6 {[%clk 0:03:00]} 8. Be3 {[%clk 0:02:53]}  h6 {[%clk 0:02:56]} 9. Qd2 {[%clk 0:02:52]}  Kh7 {[%clk 0:02:56]} 10. Bb5 {[%clk 0:02:49]}  Bd7 {[%clk 0:02:53]} 11. Bxc6 {[%clk 0:02:48]}  Bxc6 {[%clk 0:02:53]} 12. Rd1 {[%clk 0:02:48]}  Qe7 {[%clk 0:02:52]} 13. b4 {[%clk 0:02:45]}  a5 {[%clk 0:02:47]} 14. dxe5 {[%clk 0:02:39]}  Qxe5 {[%clk 0:02:46]} 15. Bd4 {[%clk 0:02:38]}  Qe7 {[%clk 0:02:44]} 16. a3 {[%clk 0:02:34]}  Nd7 {[%clk 0:02:26]} 17. Bxg7 {[%clk 0:02:27]}  Kxg7 {[%clk 0:02:27]} 18. Nd4 {[%clk 0:02:26]}  Ba4 {[%clk 0:02:15]} 19. Rc1 {[%clk 0:02:21]}  c5 {[%clk 0:02:14]} 20. Ne2 {[%clk 0:02:18]}  Rfd8 {[%clk 0:02:07]} 21. Nf4 {[%clk 0:02:14]}  Nf6 {[%clk 0:02:03]} 22. c4 {[%clk 0:02:11]}  axb4 {[%clk 0:01:58]} 23. axb4 {[%clk 0:02:08]}  cxb4 {[%clk 0:01:56]} 24. Qxb4 {[%clk 0:02:08]}  Bc6 {[%clk 0:01:56]} 25. Nc3 {[%clk 0:02:07]}  Rxa1 {[%clk 0:01:54]} 26. Rxa1 {[%clk 0:02:07]}  Qe5 {[%clk 0:01:51]} 27. Nfe2 {[%clk 0:02:05]}  Nd7 {[%clk 0:01:12]} 28. f4 {[%clk 0:01:54]}  Qc5+ {[%clk 0:01:11]} 29. Qxc5 {[%clk 0:01:52]}  Nxc5 {[%clk 0:01:12]} 30. Ng3 {[%clk 0:01:48]}  Re8 {[%clk 0:01:09]} 31. Re1 {[%clk 0:01:31]}  h5 {[%clk 0:01:09]} 32. h4 {[%clk 0:01:29]}  f5 {[%clk 0:00:54]} 33. Rd1 {[%clk 0:01:21]}  Bxe4 {[%clk 0:00:27]} 34. Rxd6 {[%clk 0:01:18]}  Bc6 {[%clk 0:00:20]} 35. Kf2 {[%clk 0:01:08]}  Ra8 {[%clk 0:00:16]} 36. Rd2 {[%clk 0:01:04]}  Ra3 {[%clk 0:00:15]} 37. Nge2 {[%clk 0:01:02]}  Rb3 {[%clk 0:00:11]} 38. g3 {[%clk 0:00:58]}  Rb4 {[%clk 0:00:11]} 39. Rd4 {[%clk 0:00:56]}  Nb3 {[%clk 0:00:10]} 40. Rd6 {[%clk 0:00:40]}  Rxc4 {[%clk 0:00:10]} 41. Ke3 {[%clk 0:00:39]}  Nc5 {[%clk 0:00:08]} 42. Nb1 {[%clk 0:00:28]}  Re4+ {[%clk 0:00:07]} 43. Kf2 {[%clk 0:00:23]}  Re7 {[%clk 0:00:05]} 44. Nbc3 {[%clk 0:00:22]}  Ne4+ {[%clk 0:00:04]} 45. Nxe4 {[%clk 0:00:21]}  Bxe4 {[%clk 0:00:04]} 46. Nd4 {[%clk 0:00:20]}  Kf7 {[%clk 0:00:04]} 47. Nb5 {[%clk 0:00:19]}  Bc6 {[%clk 0:00:03]} 48. Nd4 {[%clk 0:00:19]}  Rd7 {[%clk 0:00:03]} 49. Rxd7+ {[%clk 0:00:18]}  Bxd7 {[%clk 0:00:04]} 50. Ke3 {[%clk 0:00:18]}  Ke7 {[%clk 0:00:04]} 51. Nf3 {[%clk 0:00:18]}  Kd6 {[%clk 0:00:05]} 52. Ne5 {[%clk 0:00:18]}  Be8 {[%clk 0:00:05]} 53. Kd4 {[%clk 0:00:18]}  b5 {[%clk 0:00:05]} 54. Nd3 {[%clk 0:00:19]}  Bd7 {[%clk 0:00:02]} 55. Ne5 {[%clk 0:00:19]}  Be8 {[%clk 0:00:03]} 56. Nd3 {[%clk 0:00:19]}  Bd7 {[%clk 0:00:03]} 57. Ne5 {[%clk 0:00:20]}  Be8 {[%clk 0:00:04]} 1/2-1/2


[Site "https://www.chess.com"]

[Event "Titled Tuesday Blitz January 03 Early 2023"]
[White "Omelja, Artem"]
[Black "Mazurkiewicz, Michal"]
[WhiteFideId "14119846"]
[BlackFideId "1124943"]
[WhiteElo "2446"]
[BlackElo "2145"]
[Result "1-0"]
[Round "09"]
[TimeControl "180+2"]
[Date "2023.01.03"]
[WhiteClock "0:00:05"]
[BlackClock "0:00:01"]

1. e4 {[%clk 0:02:59]}  d6 {[%clk 0:02:41]} 2. d4 {[%clk 0:02:59]}  Nf6 {[%clk 0:02:41]} 3. Bd3 {[%clk 0:02:56]}  c5 {[%clk 0:02:41]} 4. c3 {[%clk 0:02:54]}  Nc6 {[%clk 0:02:40]} 5. Ne2 {[%clk 0:02:53]}  e5 {[%clk 0:02:41]} 6. O-O {[%clk 0:02:44]}  cxd4 {[%clk 0:02:33]} 7. cxd4 {[%clk 0:02:43]}  Be7 {[%clk 0:02:32]} 8. Nbc3 {[%clk 0:02:42]}  O-O {[%clk 0:02:32]} 9. h3 {[%clk 0:02:42]}  a6 {[%clk 0:02:28]} 10. Be3 {[%clk 0:02:42]}  Re8 {[%clk 0:02:27]} 11. Rc1 {[%clk 0:02:41]}  Bf8 {[%clk 0:02:27]} 12. Qb3 {[%clk 0:02:10]}  b5 {[%clk 0:01:44]} 13. Rfd1 {[%clk 0:01:47]}  exd4 {[%clk 0:01:32]} 14. Nxd4 {[%clk 0:01:47]}  Nxd4 {[%clk 0:01:33]} 15. Bxd4 {[%clk 0:01:47]}  Bb7 {[%clk 0:01:34]} 16. f3 {[%clk 0:01:17]}  Rc8 {[%clk 0:01:22]} 17. Bb1 {[%clk 0:01:13]}  d5 {[%clk 0:01:00]} 18. e5 {[%clk 0:00:53]}  Nh5 {[%clk 0:00:59]} 19. a4 {[%clk 0:00:45]}  b4 {[%clk 0:00:51]} 20. Ne2 {[%clk 0:00:45]}  Rxc1 {[%clk 0:00:51]} 21. Rxc1 {[%clk 0:00:45]}  Qg5 {[%clk 0:00:49]} 22. Rc7 {[%clk 0:00:36]}  Nf4 {[%clk 0:00:34]} 23. Nxf4 {[%clk 0:00:32]}  Qxf4 {[%clk 0:00:35]} 24. Qd3 {[%clk 0:00:31]}  g6 {[%clk 0:00:21]} 25. Rxb7 {[%clk 0:00:31]}  Rc8 {[%clk 0:00:21]} 26. Kf2 {[%clk 0:00:12]}  Rc4 {[%clk 0:00:13]} 27. Be3 {[%clk 0:00:11]}  Qxe5 {[%clk 0:00:13]} 28. b3 {[%clk 0:00:06]}  Rc3 {[%clk 0:00:10]} 29. Qd4 {[%clk 0:00:06]}  Rxe3 {[%clk 0:00:02]} 30. Qxe3 {[%clk 0:00:06]}  Qb2+ {[%clk 0:00:02]} 31. Kg3 {[%clk 0:00:05]}  Bd6+ {[%clk 0:00:01]} 32. f4 {[%clk 0:00:05]} 1-0


[Site "https://www.chess.com"]